Cogmind - Beta 13 *** ADVENTURER MODE // 2024.07.18 @ 22:31:25 Player: Jefffff Result: Destroyed by as-45030 with Assembled Blade Performance ------------- Evolutions (0) 0 Regions Visited (2) 400 Robots Destroyed (8) 40 Value Destroyed (149) 149 Prototype IDs (2) 40 Alien Tech Used (0) 0 Bonus (0) 0 TOTAL SCORE: 629 Bonus ------- None Cogmind --------- Core Integrity 0/250 Matter 89/300 Energy 54/100 System Corruption 5% Temperature Cool (0) Movement Walking (120) Location -10/Mines Parts ------- > --- POWER (1) -------- (None) > --- PROPULSION (2) --- Aluminum Leg > --- UTILITY (2) ------ (None) > --- WEAPON (2) ------- (None) > --- INVENTORY (5) ---- Mining Laser Peak State ------------ > --- POWER ------------ Light Nuclear Core > --- PROPULSION ------- Aluminum Leg Aluminum Leg > --- UTILITY ---------- Improved Heat Sink Weapon Shielding > --- WEAPON ----------- EM Pulse Gun Assault Rifle > --- INVENTORY -------- Aluminum Leg Aluminum Leg Aluminum Leg Aluminum Leg Mining Laser [Rating: 11] Favorites ----------- Power Light Nuclear Core Engine Light Ion Engine Power Core Light Nuclear Core Propulsion Aluminum Leg Leg Aluminum Leg Utility Improved Heat Sink Device Improved Heat Sink Protection Weapon Shielding Weapon Assault Rifle Energy Gun EM Pulse Gun Ballistic Gun Assault Rifle Special Weapon Mining Laser Build | -11 -10 -10 ------- Run | Yrd Mat Min Slots Evolved . | . . . Power . | . . . Propulsion . | . . . Utility . | . . . Weapon . | . . . Parts Attached 23 | . 15 8 Power 3 | . 3 . Engine 1 | . 1 . Core 2 | . 2 . Reactor . | . . . Propulsion 12 | . 6 6 Treads . | . . . Leg 12 | . 6 6 Wheel . | . . . Hover . | . . . Flight . | . . . Utility 2 | . 2 . Device 1 | . 1 . Storage . | . . . Processor . | . . . Hackware . | . . . Protection 1 | . 1 . Artifact . | . . . Weapon 6 | . 4 2 Energy Gun 3 | . 2 1 Energy Cannon . | . . . Ballistic Gun 2 | . 2 . Ballistic Cannon . | . . . Launcher . | . . . Special Weapon 1 | . . 1 Impact Weapon . | . . . Slashing Weapon . | . . . Piercing Weapon . | . . . Special Melee Weapon . | . . . Unidentified Prototypes . | . . . Parts Lost 10 | . . 10 Power 1 | . . 1 Propulsion 5 | . . 5 Utility 2 | . . 2 Weapon 2 | . . 2 Highest Loss Streak 10 | . . 10 To Critical Strikes 1 | . . 1 Average Slot Usage (%) 82 | . 82 82 Engine 4 | . 7 . Core 8 | . 6 10 Leg 27 | . 28 27 Device 8 | . 5 12 Protection 8 | . 5 11 Energy Gun 11 | . 13 9 Ballistic Gun 12 | . 14 10 Naked Turns 1 | . . 1 Heaviest Build 11 | . 11 11 Greatest Support 20 | 3 20 20 Greatest Overweight (x) . | . . . Average Overweight (x) . | . . . Largest Inventory Capacity 5 | 5 5 5 Average Capacity 5 | 5 5 5 Most Carried 5 | 5 5 5 Average Carried 3 | 3 2 4 Final Capacity 5 | 5 5 5 Final Carried 5 | 5 5 1 Class Distribution -------------------- 100% | Mutant Dominant Class ---------------- Mutant | -10/Materials Mutant | -10/Mines Resources | -11 -10 -10 ----------- Run | Yrd Mat Min Matter Collected 219 | 83 136 . Remotely . | . . . Salvage Created 276 | . 221 55 Parts 18 | . 12 6 Haulers Intercepted . | . . . Recyclers Shooed 1 | . 1 . Parts Field Recycled . | . . . Retrieved Matter . | . . . Parts Self-Destructed . | . . . Prevented . | . . . Kills | -11 -10 -10 ------- Run | Yrd Mat Min Combat Hostiles Destroyed 5 | . 2 3 Guns 5 | . 2 3 Classes Destroyed 4 | . 3 1 Recycler 1 | . 1 . Watcher 2 | . 2 . Swarmer 3 | . . 3 Grunt 2 | . 2 . Best Kill Streak 3 | . 3 3 Combat Bots Only 3 | . 2 3 Max Kills in Single Turn 1 | . 1 1 Gunslinging . | . . . Exploded . | . . . Melee . | . . . Uniques/NPCs Destroyed . | . . . Combat | -11 -10 -10 -------- Run | Yrd Mat Min Hostile Shots Fired 98 | . 8 90 Missed 28 | . 2 26 Damage Taken 1018 | . 91 927 Core 262 | . 8 254 Absorbed by Shields . | . . . Redirected to Shielding 36 | . . 36 Ignored by Resistances 293 | . 27 266 Core Remaining (%) 100 | 100 . . Volleys Fired 21 | . 13 8 Largest 2 | . 2 2 Hottest 60 | . 60 60 Shots Fired 38 | . 26 12 Gun 38 | . 26 12 Cannon . | . . . Launcher . | . . . Special . | . . . Kinetic 21 | . 13 8 Thermal . | . . . Explosive . | . . . Electromagnetic 17 | . 13 4 Robot Hit Streak 8 | . 8 3 Robot Miss Streak 4 | . 3 4 Penetration Max . | . . . Secondary Targets 2 | . 1 1 Max Gunslinging Chain 1 | . 1 1 Shots Hit Robots 25 | . 18 7 Core Hits 15 | . 9 6 Critical Kills . | . . . Critical Parts Destroyed . | . . . Critical Strikes 1 | . 1 . Corrupt 1 | . 1 . Melee Attacks . | . . . Impact . | . . . Slashing . | . . . Piercing . | . . . Sneak Attacks . | . . . Combat Hostiles . | . . . Follow-up Attacks . | . . . Damage Inflicted 419 | . 339 80 Guns 346 | . 272 74 Cannons . | . . . Explosions 67 | . 67 . Melee . | . . . Ramming 6 | . . 6 Kinetic 149 | . 98 51 Thermal 67 | . 67 . Explosive . | . . . Electromagnetic 197 | . 174 23 Impact . | . . . Slashing . | . . . Piercing . | . . . Highest Corruption 5 | . . 5 Average Corruption 4 | . . 4 Corruption Purged . | . . . Corruption Blocked . | . . . Effects 2 | . . 2 Matter Fused 1 | . . 1 Energy Discharges 1 | . . 1 Overload Shots . | . . . Overflow Damage . | . . . Projectiles . | . . . Explosions . | . . . Melee . | . . . Knockbacks . | . . . Impact . | . . . Kinetic . | . . . Secondary . | . . . Self-Inflicted Damage 30 | . 30 . Shots 1 | . 1 . Rammed . | . . . Targets Rammed 5 | . . 5 Kicked 5 | . . 5 Crushed . | . . . Highest Temperature 57 | . 57 28 Average Temperature 27 | . 32 11 Received Heat Transfer 465 | . 45 420 Siege Activations . | . . . Robots Corrupted . | . . . Combat Hostiles . | . . . Parts Fried 3 | . 3 . Impact Corruptions . | . . . Robots Melted . | . . . Combat Hostiles . | . . . Parts Melted . | . . . Heat Transferred 150 | . 150 . Parts Sabotaged . | . . . Parts Stolen . | . . . Parts Stripped . | . . . Power Chain Reactions 2 | . 2 . Alert | -11 -10 -10 ------- Run | Yrd Mat Min Peak Influence 130 | . 130 112 Initial 42 | . . 42 Average 78 | . 75 86 Maximum Alert Level . | . . . Low Security (%) 100 | 100 100 100 Level 1 . | . . . Level 2 . | . . . Level 3 . | . . . Level 4 . | . . . Level 5 . | . . . High Security . | . . . Max Security . | . . . Squads Dispatched 2 | . 2 . Investigation 2 | . 2 . Extermination . | . . . Reinforcement . | . . . Assault . | . . . Garrison . | . . . Intercept . | . . . Searches Triggered . | . . . Construction Impeded . | . . . Haulers Reinforced . | . . . Active Scanning Responses . | . . . Cargo Convoy Interrupts . | . . . Stealth | -11 -10 -10 --------- Run | Yrd Mat Min Distress Signals . | . . . Communications Jammed . | . . . Distress Signals . | . . . Times Spotted 22 | . 6 16 Peak Tracking Total 13 | . 2 13 Tactical Retreats . | . . . Traps | -11 -10 -10 ------- Run | Yrd Mat Min Traps Triggered 1 | . 1 . Indirectly . | . . . Trap Hack Attempts . | . . . Triggered . | . . . Disarmed . | . . . Reprogrammed . | . . . Reused . | . . . Traps Extracted . | . . . Installed . | . . . Triggered . | . . . Machines | -11 -10 -10 ---------- Run | Yrd Mat Min Machines Disabled . | . . . Max in Single Turn . | . . . Machines Repaired . | . . . Machines Dismantled . | . . . Machines Sabotaged . | . . . Overloaded Fab Kills . | . . . Hacking | -11 -10 -10 --------- Run | Yrd Mat Min Machines Accessed 5 | . 5 . Terminals 4 | . 4 . Fabricators . | . . . Repair Stations . | . . . Recycling Units 1 | . 1 . Scanalyzers . | . . . Garrison Access . | . . . Total Hacks 16 | . 16 . Successful 11 | . 11 . Failed 5 | . 5 . Catastrophic . | . . . Database Lockouts . | . . . Manual 7 | . 7 . Terminals 15 | . 15 . Fabricators . | . . . Repair Stations . | . . . Recycling Units 1 | . 1 . Scanalyzers . | . . . Garrison Access . | . . . Terminal Hacks 9 | . 9 . Part Schematic 1 | . 1 . Prototype ID Bank 1 | . 1 . Branch Access Points 1 | . 1 . Terminal Index 1 | . 1 . Recycling Unit Index 1 | . 1 . Dispatch Records 1 | . 1 . Recall Investigation 1 | . 1 . Zone Layout 2 | . 2 . Fabricator Hacks . | . . . Repair Station Hacks . | . . . Recycling Unit Hacks 1 | . 1 . Report Inventory 1 | . 1 . Scanalyzer . | . . . Garrison Access Hacks . | . . . Unauthorized Hacks 1 | . 1 . Terminals 1 | . 1 . Botnet 1 | . 1 . Fabricators . | . . . Repair Stations . | . . . Recycling Units . | . . . Scanalyzers . | . . . Garrison Access . | . . . Data Cores Recovered . | . . . Used . | . . . Hacking Detections 5 | . 5 . Full Trace Events 2 | . 2 . Feedback Events . | . . . Feedback Blocked . | . . . Robot Schematics Acquired . | . . . Robots Built . | . . . Authchips . | . . . Time . | . . . Total Robot Build Rating . | . . . Part Schematics Acquired 1 | . 1 . Parts Built . | . . . Authchips . | . . . Time . | . . . Total Part Build Rating . | . . . Parts Repaired . | . . . Time . | . . . Parts Recycled . | . . . Recycled Matter . | . . . Retrieved Matter . | . . . Retrieved Components . | . . . Parts Scanalyzed . | . . . Part Schematics Acquired . | . . . Parts Damaged . | . . . Bothacking | -11 -10 -10 ------------ Run | Yrd Mat Min Used RIF Installer . | . . . Robots Hacked . | . . . Non-combat . | . . . Combat . | . . . Robot Hacks Applied . | . . . Relay Couplers Released . | . . . Fabnet Peak Effective % . | . . . Robots Rewired . | . . . Allies Hacked . | . . . Hacks Repelled . | . . . Allies | -11 -10 -10 -------- Run | Yrd Mat Min Total Allies . | . . . Largest Group . | . . . Highest-Rated Group . | . . . Highest-Rated Ally . | . . . Total Orders . | . . . Ally Attacks . | . . . Total Damage . | . . . Kills . | . . . Allies Corrupted . | . . . Allies Melted . | . . . Intel | -11 -10 -10 ------- Run | Yrd Mat Min Robot Analysis Total . | . . . Derelict Logs Recovered 1 | . . 1 Drone Launches . | . . . Drone Recoveries . | . . . Exploration | -11 -10 -10 ------------- Run | Yrd Mat Min Turns Passed 629 | 22 330 277 Spaces Moved 408 | 34 177 197 Core 34 | 34 . . Treads . | . . . Legs 374 | . 177 197 Wheels . | . . . Hover . | . . . Flight . | . . . Fastest Speed 50 | 50 120 120 Average Speed 114 | 50 120 120 Slowest Speed 120 | 50 120 120 Overloaded Moves . | . . . Propulsion Burnouts . | . . . Robots Hopped . | . . . Cave-ins Triggered . | . . . Exploration Rate (%) 28 | 3 29 54 Regions Visited 2 Branch Regions 1 Pre-discovered Areas 1 | . . 1 Known Exits Taken 1 | . 1 . Unknown Exits Taken 1 | 1 . . Scrap Searched . | . . . Spaces Dug . | . . . Terrain Destroyed 5 | . 5 . Melee . | . . . Projectile . | . . . AOE 5 | . 5 . Terrain Rammed . | . . . Walls Destroyed . | . . . Machines Disabled . | . . . Actions | -11 -10 -10 --------- Run | Yrd Mat Min Total 530 | 38 269 223 Wait 60 | . 55 5 Move 406 | 33 176 197 Hop . | . . . Pick Up 10 | 5 5 . Fast Attach 5 | . 5 . Attach 9 | . 5 4 Detach . | . . . Swap 9 | . 5 4 Drop 5 | . 5 . Fire 21 | . 13 8 Melee . | . . . Ram . | . . . Kick 5 | . . 5 Crush . | . . . Escape Stasis . | . . . Rewire . | . . . Trap . | . . . Miscellaneous . | . . . Route ------- -11/Scrapyard -10/Materials (discovered 2 exits: *Min x2) -10/Mines History --------- Turn | Location | Event 6 | -11/Scrapyard | Discovered new exit (range 15) 23 | -11/Scrapyard | Entered Materials 40 | -10/Materials | Identified exit to Mines 300 | -10/Materials | Build established: Mutant 353 | -10/Materials | Entered Mines 550 | -10/Mines | Assembled infested the area 599 | -10/Mines | Core integrity fell below 50% 627 | -10/Mines | Core integrity fell below 20% 630 | -10/Mines | Destroyed by as-45030 with Assembled Blade Last Messages --------------- 00592_ Imp. Heat Sink destroyed. 00592_ Knocked back. 00593_ K-01 Serf collects debris. 00597_ Critical hit (Destroy). 00597_ Aluminum Leg destroyed. 00600_ as-96430 destroyed. 00601_ T-07 Excavator system corrupted by crushing effect. 00601_ K-01 Serf destroyed. 00602_ T-07 Excavator system corrupted by crushing effect. 00602_ T-07 Excavator knocked back. 00603_ T-07 Excavator system terminally corrupted. 00614_ System corrupted: Energy discharge (-14). 00621_ Aluminum Leg destroyed. 00625_ as-48787 sneak attacks. 00625_ R-06 Scavenger destroyed. 00629_ Aluminum Leg destroyed. 00630_ K-01 Serf collects debris. Map ----- +----------------------------------------------------+ | ?????????????????## ######### #????????????? | | ????????????????## ###???????# #????????????? | | ????????????????# ##?????????# #????????????? | | ????????????????# #??????????# #????????##### | | ???????????????# ####???????# #???????# # | | ???????????????# ### #??????# #??????# | | ???????????????###### ##????# ####### | | ????????????????????# ####?# %# | | ?????????????????????# ######## ## | | ??????????????????????# ###???# ########? | | ???????????????????????# ##### #???????? | | ??????????????????????## #???????? | | ????????????????????### ######???????? | | ???????????????????## #????????????? | | ???????????????????# #????????????? | | ???????????????????# #????????????? | | ???????????????????## #????????????? | | ????????????????????# k ##???????????? | | ????????????????????# #???????????? | | ????????????????##### ## #???????????? | | ???????????????## ### #???????????? | | ???????????????# #??###???????????? | | ???????????????## #????????????????? | | ????????????????## ##????????????????? | | ????????????###??## ###?????????????????? | | ????????????# #??## @ ##???????????????????? | | ????????????# #### a #????????????????????? | | ?????????????# ## aa ##???????????????????? | | ?????????????# a #???????????????????? | | ?????????????# a #???????????????????? | | ????????????## *= #???????????????????? | | ????????????# =%##???????????????????? | | ????????????# **#????????????????????? | | ????????????## #????????????????????? | | ?????????????########## #????????????????????? | | ??????????????????#####a #????????????????????? | | ??????????????????# #????????????????????? | | ??????????????????# #?????????????? ?????? | | ??????????????????# #####?????????????? ?????? | | ??????????????????# #???????????????### ?????? | | ??????????????????# #??????????????? #?????? | | ??????????????????# #??????????????? ##????? | | ??????????????????# #??????????????? ##???? | | ??????????????????# #?####?????????? ##??? | | ??????????????????# ### #####?????? #??? | | ??????####????????# ## ##????? #??? | | ??????# ##??????## # ##????# #??? | | ??????# #?????## = ##???# #??? | | ??????## ##???## % % #####** ##?? | | ???????# ##?## #### ##? | +----------------------------------------------------+ Best States ------------- Heat Dissipation 39 Energy Generation 14 Energy Capacity 160 Matter Stores 173 Matter Capacity 300 Sight Range 16 Terrain Scan Density 10 Resistance: KI 20 Resistance: TH 20 Resistance: EX 20 Resistance: EM 20 Resistance: I 20 Resistance: S 20 Resistance: P 20 Weapon Shielding 33 Evasion (%) 55 Offensive Hacking 10 Item Schematics ----------------- Huge Storage Unit | -10/Materials | Hacked Robot Schematics ------------------ None Fabricated ------------ Nothing Alien Tech Used ----------------- None Achievements -------------- None Challenges ------------ None Game ------ Seed HoverFieldNullifier Manual? 0 Play Time 00:08:26 Cumulative 41.6 hours Start 2024.07.18 @ 22:24:13 End 2024.07.18 @ 22:31:25 Sessions 1 Manual Loads 0 Difficulty Adventurer Special Mode None Game No. 69 Rogue 0 Adventurer 69 Explorer 0 Win Type - Total 0 Types 0/0/0/0/0/0/0/0/0 Lore% 38 Gallery% 36 Achievement% 30 Wizard Run 0 Options --------- Layout 2 ASCII 0 Keyboard 0 Movement Mouse Keybinds 0 Fullscreen 2 Font 48/Smallcaps Map View 50x44 Zoom Use 0% Tactical HUD 1 Map Filters NONE Filters NONE Steam 1 RUN: c368367a-c247-44f9-8746-40f3fa2ead1d